fUSD/lending_fUSD_20260402
["ID","MTS","AMOUNT","RATE_DAILY","PERIOD"]
[419317146,1775154642378,-500.0,0.00015999,2]
[419317147,1775154642387,-500.0,0.00015999,2]
[419317148,1775154642397,-500.0,0.00015999,2]
[419317149,1775154642407,-500.0,0.00015999,2]
[419317150,1775154642417,-500.0,0.00015999,2]
[419317151,1775154642426,-500.0,0.00015999,2]
[419317152,1775154642436,-500.0,0.00015999,2]
[419317153,1775154642446,-500.0,0.00015999,2]
[419317154,1775154642456,-500.0,0.00015999,2]
[419317155,1775154642466,-500.0,0.00015999,2]
[419317156,1775154642476,-533.94,0.00015999,2]
[419317157,1775154642486,-533.94,0.00015999,2]
[419317158,1775154642495,-500.0,0.00015999,2]
[419317159,1775154642505,-533.94,0.00015999,2]
[419317160,1775154642514,-507.27121127,0.00015999,2]
[419317161,1775154642524,-533.94,0.00015999,2]
[419317162,1775154642533,-533.94,0.00015999,2]
[419317163,1775154642543,-533.94,0.00015999,2]
[419317164,1775154642552,-533.94,0.00015999,2]
[419317165,1775154642562,-533.94,0.00015999,2]
[419317166,1775154642571,-533.94,0.00015999,2]
[419317167,1775154642582,-533.94,0.00015999,2]
[419317168,1775154642591,-533.94,0.00015999,2]
[419317169,1775154642601,-533.94,0.00015999,2]
[419317170,1775154642611,-533.94,0.00015999,2]
[419317171,1775154642620,-500.0,0.00015999,2]
[419317172,1775154642630,-500.0,0.00015999,2]
[419317173,1775154642639,-500.0,0.00015999,2]
[419317174,1775154642649,-500.0,0.00015999,2]
[419317175,1775154642659,-500.0,0.00015999,2]
[419317176,1775154642668,-500.0,0.00015999,2]
[419317177,1775154642678,-500.0,0.00015999,2]
[419317178,1775154642688,-500.0,0.00015999,2]
[419317179,1775154642697,-500.0,0.00015999,2]
[419317180,1775154642707,-500.0,0.00015999,2]
[419317181,1775154642718,-500.0,0.00015999,2]
[419317182,1775154642727,-500.0,0.00015999,2]
[419317183,1775154642736,-500.0,0.00015999,2]
[419317184,1775154642746,-500.0,0.00015999,2]
[419317185,1775154642755,-500.0,0.00015999,2]
[419317186,1775154642764,-500.0,0.00015999,2]
[419317187,1775154642773,-500.0,0.00015999,2]
[419317188,1775154642783,-500.0,0.00015999,2]
[419317189,1775154642792,-500.0,0.00015999,2]
[419317190,1775154642802,-500.0,0.00015999,2]
[419317191,1775154642811,-500.0,0.00015999,2]
[419317192,1775154642820,-500.0,0.00015999,2]
[419317193,1775154642829,-500.0,0.00015999,2]
[419317194,1775154642839,-500.0,0.00015999,2]
[419317195,1775154642848,-500.0,0.00015999,2]
[419317196,1775154642858,-500.0,0.00015999,2]
[419317197,1775154642867,-500.0,0.00015999,2]
[419317198,1775154642876,-500.0,0.00015999,2]
[419317199,1775154642886,-398.43669082,0.00015999,2]
[419317200,1775154642896,-500.0,0.00015999,2]
[419317201,1775154642906,-500.0,0.00015999,2]
[419317202,1775154642916,-500.0,0.00015999,2]
[419317203,1775154642925,-372.04738968,0.00015999,2]
[419317204,1775154642935,-500.0,0.00015999,2]
[419317205,1775154642944,-500.0,0.00015999,2]
[419317206,1775154642954,-500.0,0.00015999,2]
[419317207,1775154642963,-500.0,0.00015999,2]
[419317208,1775154642972,-500.0,0.00015999,2]
[419317209,1775154642982,-500.0,0.00015999,2]
[419317210,1775154642992,-500.0,0.00015999,2]
[419317211,1775154643002,-500.0,0.00015999,2]
[419317212,1775154643011,-500.0,0.00015999,2]
[419317213,1775154643021,-500.0,0.00015999,2]
[419317214,1775154643031,-433.75,0.00015999,2]
[419317215,1775154643042,-500.0,0.00015999,2]
[419317216,1775154643053,-500.0,0.00015999,2]
[419317217,1775154643064,-500.0,0.00015999,2]
[419317218,1775154643074,-500.0,0.00015999,2]
[419317219,1775154643084,-500.0,0.00015999,2]
[419317220,1775154643095,-500.0,0.00015999,2]
[419317221,1775154643107,-500.0,0.00015999,2]
[419317222,1775154643117,-500.0,0.00015999,2]
[419317223,1775154643127,-500.0,0.00015999,2]
[419317224,1775154643136,-500.0,0.00015999,2]
[419317225,1775154643146,-500.0,0.00015999,2]
[419317226,1775154643156,-500.0,0.00015999,2]
[419317227,1775154643167,-500.0,0.00015999,2]
[419317228,1775154643177,-500.0,0.00015999,2]
[419317230,1775154643187,-500.0,0.00015999,2]
[419317232,1775154643197,-500.0,0.00015999,2]
[419317234,1775154643207,-500.0,0.00015999,2]
[419317236,1775154643217,-500.0,0.00015999,2]
[419317237,1775154643227,-500.0,0.00015999,2]
[419317238,1775154643237,-500.0,0.00015999,2]
[419317239,1775154643247,-500.0,0.00015999,2]
[419317240,1775154643256,-500.0,0.00015999,2]
[419317241,1775154643266,-500.0,0.00015999,2]
[419317242,1775154643276,-500.0,0.00015999,2]
[419317243,1775154643286,-500.0,0.00015999,2]
[419317244,1775154643295,-500.0,0.00015999,2]
[419317245,1775154643305,-167.71186909,0.00015999,2]
[419317246,1775154643315,-500.0,0.00015999,2]
[419317247,1775154643326,-227.82853886,0.00015999,2]
[419317248,1775154643336,-500.0,0.00015999,2]
[419317249,1775154643346,-500.0,0.00015999,2]
[419317250,1775154643356,-277.84992522,0.00015999,2]
[419317251,1775154643367,-325.64720677,0.00015999,2]
[419317252,1775154643377,-500.0,0.00015999,2]
[419317253,1775154643388,-500.0,0.00015999,2]
[419317254,1775154643398,-197.50875024,0.00015999,2]
[419317255,1775154643408,-1923.0,0.00016,5]
[419317256,1775154643418,-1918.0,0.00016,5]
[419317257,1775154643429,-150.0,0.00016,2]
[419317258,1775154643439,-150.0,0.00016,2]
[419317259,1775154643450,-240.20283738,0.00016,2]
[419317260,1775154643459,-245.82237456,0.00016,2]
[419317261,1775154643470,-150.0,0.00016,2]
[419317262,1775154643480,-153531.89558244,0.00016,2]
[419317263,1775154643497,-873.41244631,0.00016,2]
[419317264,1775154643555,-29948.97847713,0.00016,2]
[419317265,1775154643647,-1092.04666804,0.00016,2]
[419317266,1775154643657,-2503154.62657706,0.00016,2]
[419317267,1775154643666,-50631.9774819,0.00016,2]
[419317268,1775154643781,-200.0,0.00016,2]
[419317269,1775154643792,-1000.0,0.00016,2]
[419317270,1775154643802,-1000.0,0.00016,2]
[419317271,1775154643812,-246.472,0.00016,2]
[419317272,1775154643821,-300.0,0.00016,5]
[419317273,1775154643831,-200.0,0.00016,2]
[419317274,1775154643840,-325.53110143,0.00016,2]
[419317275,1775154643850,-732.37095985,0.00016,2]
[419317276,1775154643859,-250.0,0.00016,2]
[419317277,1775154643869,-1890.0,0.00016,2]
[419317278,1775154643879,-2000.0,0.00016,2]
[419317279,1775154643888,-555.00974,0.00016,2]
[419317280,1775154643898,-555.00974,0.00016,2]
[419317281,1775154643907,-555.00974,0.00016,2]
[419317282,1775154643917,-770.161626,0.00016,2]
[419317283,1775154643926,-555.00974,0.00016,2]
[419317284,1775154643936,-770.161626,0.00016,2]
[419317285,1775154643945,-770.161626,0.00016,2]
[419317286,1775154643955,-770.161626,0.00016,2]
[419317287,1775154643965,-554.95754509,0.00016,2]
[419317288,1775154643974,-500.0,0.00016,2]
[419317289,1775154643985,-151.0,0.00016,2]
[419317290,1775154643995,-151.0,0.00016,2]
[419317291,1775154644004,-151.0,0.00016,2]
[419317292,1775154644014,-151.0,0.00016,2]
[419317293,1775154644023,-151.0,0.00016,2]
[419317294,1775154644033,-229.672182,0.00016,2]
[419317295,1775154644042,-151.0,0.00016,2]
[419317296,1775154644051,-467.622927,0.00016,2]
[419317297,1775154644061,-467.622927,0.00016,2]
[419317298,1775154644070,-467.622927,0.00016,2]
[419317299,1775154644079,-467.622927,0.00016,2]
[419317300,1775154644089,-417.26300613,0.00016,2]
[419317301,1775154644098,-294.980917,0.00016,2]
[419317302,1775154644108,-454.30393,0.00016,2]
[419317303,1775154644117,-294.980917,0.00016,2]
[419317304,1775154644126,-454.30393,0.00016,2]
[419317305,1775154644136,-294.980917,0.00016,2]
[419317306,1775154644146,-454.30393,0.00016,2]
[419317307,1775154644155,-294.980917,0.00016,2]
[419317308,1775154644164,-454.30393,0.00016,2]
[419317309,1775154644174,-168.0,0.00016,3]
[419317310,1775154644183,-158.0,0.00016,3]
[419317311,1775154644192,-2050.0,0.00016001,2]
[419317312,1775154644202,-2000.0,0.00016001,2]
[419317313,1775154644211,-195.00218639,0.00016011,2]
[419317314,1775154644221,-350.0,0.00016015,2]
[419317315,1775154644230,-2505.0,0.0001602,2]
[419317316,1775154644241,-1313.0,0.00016023,2]
[419317317,1775154644250,-2050.0,0.00016027,2]
[419317318,1775154644259,-151.75784777,0.00016032,2]
[419317319,1775154644269,-180.933305,0.00016042,2]
[419317320,1775154644278,-233.39978873,0.00016061,2]
[419317321,1775154644287,-197.11348967,0.00016061,2]
[419317322,1775154644297,-196.53241966,0.00016062,2]
[419317323,1775154644307,-1354.65118905,0.0001607,2]
[419317324,1775154644316,-350.0,0.00016081,2]
[419317325,1775154644325,-776.86,0.00016082,2]
[419317326,1775154644334,-200.0,0.00016082,2]
[419317327,1775154644344,-1536.04360649,0.00016082,2]
[419317328,1775154644353,-187.78006525,0.00016082,2]
[419317329,1775154644362,-200.0,0.00016082,2]
[419317330,1775154644372,-799.54513345,0.00016082,2]
[419317331,1775154644381,-21848.81450555,0.00016086,2]
[419317332,1775154644395,-2937.0,0.00016089,2]
[419317333,1775154644404,-2505.0,0.0001609,2]
[419317334,1775154644414,-1032.17,0.000161,2]
[419317335,1775154644426,-211.5084,0.000161,12]
[419317336,1775154644436,-2934.0,0.00016105,2]
[419317337,1775154644445,-350.0,0.00016112,2]
[419317338,1775154644455,-226.51759958,0.00016113,2]
[419317339,1775154644465,-9999.99,0.00016116,2]
[419317340,1775154644475,-2505.0,0.00016146,2]
[419317341,1775154644484,-218.51748934,0.00016151,2]
[419317342,1775154644494,-186.75639601,0.00016151,2]
[419317343,1775154644504,-200.0,0.0001616,2]
[419317344,1775154644513,-2505.0,0.00016164,2]
[419317345,1775154644523,-1289.53447238,0.00016164,2]
[419317346,1775154644532,-2505.0,0.00016191,2]
[419317347,1775154644541,-1313.0,0.00016194,2]
[419317348,1775154644550,-500.0,0.00016199,2]
[419317349,1775154644559,-508.0,0.000162,2]
[419317350,1775154644569,-5000.00615473,0.000162,5]
[419317351,1775154644578,-2000.0,0.000162,2]
[419317352,1775154644587,-161.12,0.00016218,2]
[419317353,1775154644597,-166.67,0.00016225,2]
[419317354,1775154644606,-2505.0,0.00016242,2]
[419317355,1775154644615,-239.39561018,0.00016281,2]
[419317356,1775154644624,-500.0,0.00016281,2]
[419317357,1775154644633,-500.0,0.00016281,2]
[419317358,1775154644643,-500.0,0.00016281,2]
[419317359,1775154644652,-4000.0,0.00016282,2]
[419317360,1775154644661,-1500.0,0.00016286,2]
[419317361,1775154644670,-1676.0,0.00016288,2]
[419317362,1775154644681,-405.689106,0.00016299,7]
[419317363,1775154644691,-158.0,0.000163,2]
[419317364,1775154644702,-158.0,0.000163,2]
[419317365,1775154644714,-1313.0,0.00016303,2]
[419317366,1775154644725,-168.12,0.00016311,2]
[419317367,1775154644735,-200.0,0.00016322,2]
[419317368,1775154644744,-700.13141753,0.00016343,2]
[419317369,1775154644754,-776.86,0.00016356,2]
[419317370,1775154644766,-367.268748,0.00016358,7]
[419317371,1775154644775,-350.0,0.00016371,2]
[419317372,1775154644786,-477.38172344,0.00016377,2]
[419317373,1775154644797,-21848.81450555,0.00016378,2]
[419317374,1775154644807,-166.66,0.00016388,2]
[419317375,1775154644816,-300.03366811,0.00016399,2]
[419317376,1775154644825,-265.29078846,0.00016399,2]
[419317377,1775154644834,-290.40095684,0.000164,2]
[419317378,1775154644843,-433.28065722,0.000164,2]
[419317379,1775154644852,-2000.0,0.000164,2]
[419317380,1775154644862,-2000.0,0.000164,2]
[419317381,1775154644871,-439.08278245,0.00016421,2]
[419317382,1775154644880,-2050.0,0.00016421,2]
[419317383,1775154644890,-151.0,0.00016435,2]
[419317384,1775154644899,-897.7,0.00016438,2]
[419317385,1775154644911,-150.0,0.00016438,2]
[419317386,1775154644921,-359.89,0.00016438,2]
[419317387,1775154644931,-2095.52,0.00016438,2]
[419317388,1775154644940,-250.0,0.00016438,2]
[419317389,1775154644950,-152.59,0.00016438,2]
[419317390,1775154644959,-150.0,0.00016438,2]
[419317391,1775154644968,-309.174191,0.00016438,2]
[419317392,1775154644978,-309.174191,0.00016438,2]
[419317393,1775154644989,-309.174191,0.00016438,2]
[419317394,1775154644998,-309.174191,0.00016438,2]
[419317395,1775154645008,-151.0,0.00016438,2]
[419317396,1775154645017,-151.0,0.00016438,2]
[419317397,1775154645028,-443.49109366,0.00016441,2]
[419317398,1775154645039,-2808.0,0.00016442,2]
[419317399,1775154645050,-300.0,0.00016464,2]
[419317400,1775154645059,-300.0,0.00016464,2]
[419317401,1775154645069,-300.0,0.00016464,2]
[419317402,1775154645079,-300.0,0.00016464,2]
[419317403,1775154645088,-300.0,0.00016464,2]
[419317404,1775154645099,-300.0,0.00016464,2]
[419317405,1775154645108,-300.0,0.00016464,2]
[419317406,1775154645120,-300.0,0.00016464,2]
[419317407,1775154645129,-2000.0,0.00016469,2]
[419317408,1775154645139,-2000.0,0.00016469,2]
[419317409,1775154645150,-2000.0,0.00016469,2]
[419317410,1775154645161,-700.0,0.0001647,2]
[419317411,1775154645171,-2050.0,0.00016475,2]
[419317412,1775154645181,-2050.0,0.00016477,2]
[419317413,1775154645191,-200.0,0.00016485,2]
[419317414,1775154645201,-2650.0,0.000165,5]
[419317415,1775154645210,-214.51097117,0.000165,2]
[419317416,1775154645220,-150.0,0.000165,2]
[419317417,1775154645229,-21965.31005142,0.000165,5]
[419317418,1775154645239,-6581.18289852,0.000165,2]
[419317419,1775154645249,-151.0,0.000165,2]
[419317420,1775154645258,-151.0,0.000165,2]
[419317421,1775154645267,-151.0,0.000165,2]
[419317422,1775154645277,-151.0,0.000165,2]
[419317423,1775154645287,-151.0,0.000165,2]
[419317424,1775154645296,-467.622927,0.000165,2]
[419317425,1775154645305,-467.622927,0.000165,2]
[419317426,1775154645315,-467.622927,0.000165,2]
[419317427,1775154645324,-467.622927,0.000165,2]
[419317428,1775154645334,-151.0,0.000165,2]
[419317429,1775154645344,-294.980917,0.000165,2]
[419317430,1775154645353,-454.30393,0.000165,2]
[419317431,1775154645363,-294.980917,0.000165,2]
[419317432,1775154645372,-454.30393,0.000165,2]
[419317433,1775154645382,-294.980917,0.000165,2]
[419317434,1775154645391,-454.30393,0.000165,2]
[419317435,1775154645401,-294.980917,0.000165,2]
[419317436,1775154645411,-454.30393,0.000165,2]
[419317437,1775154645420,-1503.50570299,0.00016506,2]
[419317438,1775154645430,-2000.0,0.00016506,2]
[419317439,1775154645440,-2000.0,0.00016506,2]
[419317440,1775154645449,-2000.0,0.00016506,2]
[419317441,1775154645460,-500.0,0.00016521,2]
[419317442,1775154645469,-1000.0,0.00016521,2]
[419317443,1775154645478,-1002.81586097,0.00016521,2]
[419317444,1775154645488,-500.0,0.00016521,2]
[419317445,1775154645497,-1000.0,0.00016521,2]
[419317446,1775154645506,-1000.0,0.00016521,2]
[419317447,1775154645516,-1000.0,0.00016521,2]
[419317448,1775154645526,-880.73,0.00016534,2]
[419317449,1775154645536,-2807.0,0.00016542,2]
[419317450,1775154645545,-168.1,0.00016554,2]
[419317451,1775154645554,-333.18,0.00016554,2]
[419317452,1775154645564,-2676.0,0.00016587,2]
[419317453,1775154645574,-2000.0,0.000166,2]
[419317454,1775154645596,-776.86,0.0001663,2]
[419317455,1775154645606,-200.0,0.0001663,2]
[419317456,1775154645616,-1592.87721993,0.0001663,2]
[419317457,1775154645626,-194.72792766,0.0001663,2]
[419317458,1775154645635,-829.12830338,0.0001663,2]
[419317459,1775154645644,-2505.0,0.00016655,2]
[419317460,1775154645654,-4000.0,0.0001667,2]
[419317461,1775154645664,-21848.81450555,0.0001667,2]
[419317462,1775154645673,-2505.0,0.00016691,2]
[419317463,1775154645683,-277.0,0.000167,7]
[419317464,1775154645694,-1410.02778785,0.000167,2]
[419317465,1775154645799,-1316.30482803,0.000167,2]
[419317466,1775154645848,-1750.44039118,0.000167,2]
[419317467,1775154645857,-168.65,0.00016712,2]
[419317468,1775154645867,-300.0,0.00016748,2]
[419317469,1775154645876,-300.0,0.00016748,2]
[419317470,1775154645886,-300.0,0.00016748,2]
[419317471,1775154645896,-300.0,0.00016748,2]
[419317472,1775154645906,-300.0,0.00016748,2]
[419317473,1775154645916,-300.0,0.00016748,2]
[419317474,1775154645926,-309.174191,0.00016749,2]
[419317475,1775154645935,-309.174191,0.00016749,2]
[419317476,1775154645947,-309.174191,0.00016749,2]
[419317477,1775154645958,-309.174191,0.00016749,2]
[419317478,1775154645968,-555.00974,0.00016749,2]
[419317479,1775154645979,-555.00974,0.00016749,2]
[419317480,1775154645989,-555.00974,0.00016749,2]
[419317481,1775154646001,-401.74453205,0.00016749,2]
[419317482,1775154646021,-368.41709395,0.00016749,2]
[419317483,1775154646033,-555.00974,0.00016749,2]
[419317484,1775154646043,-770.161626,0.00016749,2]
[419317485,1775154646053,-770.161626,0.00016749,2]
[419317486,1775154646063,-770.161626,0.00016749,2]
[419317487,1775154646073,-300.0,0.00016788,2]
[419317488,1775154646083,-300.0,0.00016788,2]
[419317489,1775154646098,-300.0,0.00016788,2]
[419317490,1775154646108,-300.0,0.00016788,2]
[419317491,1775154646119,-2505.0,0.00016796,2]
[419317492,1775154646129,-155.0,0.00016799,2]
[419317493,1775154646141,-2000.0,0.000168,2]
[419317494,1775154646153,-168.12,0.00016814,2]
[419317495,1775154646164,-500.0,0.00016833,2]
[419317496,1775154646177,-2000.0,0.00016834,2]
[419317497,1775154646187,-258.0,0.00016843,2]
[419317498,1775154646196,-1313.0,0.00016873,2]
[419317499,1775154646206,-300.0,0.00016899,2]
[419317501,1775154646216,-533.94,0.00016899,2]
[419317503,1775154646226,-500.0,0.00016899,2]
[419317505,1775154646235,-189.44240006,0.00016899,2]
[419317507,1775154646245,-19700.0,0.000169,6]
[419317509,1775154646255,-151.0,0.000169,2]
[419317511,1775154646264,-151.0,0.000169,2]
[419317513,1775154646274,-151.0,0.000169,2]
[419317515,1775154646283,-151.0,0.000169,2]
[419317517,1775154646292,-151.0,0.000169,2]
[419317519,1775154646302,-776.8991124,0.00016904,2]
[419317521,1775154646311,-21848.81450555,0.00016962,2]
[419317522,1775154646321,-168.23,0.00016969,2]
[419317523,1775154646332,-168.23,0.00016969,2]
[419317524,1775154646341,-168.23,0.00016969,2]
[419317525,1775154646351,-168.23,0.00016969,2]
[419317526,1775154646360,-500.0,0.00016973,2]
[419317527,1775154646370,-500.0,0.00016973,2]
[419317528,1775154646380,-500.0,0.00016973,2]
[419317529,1775154646389,-359.66331739,0.00016973,2]
[419317530,1775154646399,-500.0,0.00016973,2]
[419317531,1775154646410,-609.23348249,0.00016973,2]
[419317532,1775154646420,-500.0,0.00016973,2]
[419317533,1775154646430,-500.62845859,0.00016973,2]
[419317534,1775154646440,-500.0,0.00016973,2]
[419317535,1775154646451,-500.0,0.00016973,2]
[419317536,1775154646463,-165.49145903,0.00016973,2]
[419317537,1775154646475,-500.0,0.00016973,2]
[419317538,1775154646484,-500.0,0.00016973,2]
[419317539,1775154646495,-500.0,0.00016973,2]
[419317540,1775154646504,-500.0,0.00016973,2]
[419317541,1775154646514,-500.0,0.00016973,2]
[419317542,1775154646524,-2505.0,0.00016974,2]
[419317543,1775154646534,-150.0,0.00016986,2]
[419317544,1775154646543,-151.0,0.00016997,2]
[419317545,1775154646555,-151.0,0.00016997,2]
[419317546,1775154646567,-182.598912,0.00016997,2]
[419317547,1775154646576,-500.0,0.00016999,2]
[419317548,1775154646587,-500.0,0.00016999,2]
[419317549,1775154646600,-500.0,0.00016999,2]
[419317550,1775154646611,-500.0,0.00016999,2]
[419317551,1775154646620,-500.0,0.00016999,2]
[419317552,1775154646630,-500.0,0.00016999,2]
[419317553,1775154646641,-561.59815036,0.00016999,2]
[419317554,1775154646653,-500.0,0.00016999,2]
[419317555,1775154646663,-500.0,0.00016999,2]
[419317556,1775154646673,-500.0,0.00016999,2]
[419317557,1775154646683,-500.0,0.00016999,2]
[419317558,1775154646693,-300.0,0.00016999,2]
[419317559,1775154646704,-300.0,0.00016999,2]
[419317560,1775154646713,-300.0,0.00016999,2]
[419317561,1775154646723,-300.0,0.00016999,2]
[419317562,1775154646734,-533.94,0.00016999,2]
[419317563,1775154646744,-533.94,0.00016999,2]
[419317564,1775154646755,-533.94,0.00016999,2]
[419317565,1775154646767,-533.94,0.00016999,2]
[419317566,1775154646777,-500.0,0.00016999,2]
[419317567,1775154646787,-412.378583,0.00016999,2]
[419317568,1775154646799,-300.0,0.00016999,2]
[419317569,1775154646810,-300.0,0.00016999,2]
[419317570,1775154646821,-300.0,0.00016999,2]
[419317571,1775154646831,-300.0,0.00016999,2]
[419317572,1775154646840,-300.0,0.00016999,2]
[419317573,1775154646850,-300.0,0.00016999,2]
[419317574,1775154646860,-300.0,0.00016999,2]
[419317575,1775154646870,-500.0,0.00016999,2]
[419317576,1775154646880,-500.0,0.00016999,2]
[419317577,1775154646890,-500.0,0.00016999,2]
[419317578,1775154646901,-500.0,0.00016999,2]
[419317579,1775154646910,-1036702.69710372,0.00017,2]
[419317580,1775154646922,-5961.60884521,0.00017,2]
[419317581,1775154646934,-2209.29468465,0.00017,2]
[419317582,1775154646947,-151.0,0.00017,2]
[419317583,1775154646957,-151.0,0.00017,2]
[419317584,1775154646967,-151.0,0.00017,2]
[419317585,1775154646978,-151.0,0.00017,2]
[419317586,1775154646988,-151.0,0.00017,2]
[419317587,1775154646998,-151.0,0.00017,2]
[419317588,1775154647008,-151.0,0.00017,2]
[419317589,1775154647019,-151.0,0.00017,2]
[419317590,1775154647029,-151.0,0.00017,2]
[419317591,1775154647039,-151.0,0.00017,2]
[419317592,1775154647050,-151.0,0.00017,2]
[419317593,1775154647060,-151.0,0.00017,2]
[419317594,1775154647069,-151.0,0.00017,2]
[419317595,1775154647081,-158.312847,0.00017,2]
[419317596,1775154647091,-309.174191,0.00017,2]
[419317597,1775154647100,-309.174191,0.00017,2]
[419317598,1775154647110,-309.174191,0.00017,2]
[419317599,1775154647120,-309.174191,0.00017,2]
[419317600,1775154647129,-2000.0,0.00017,2]
[419317601,1775154647139,-555.00974,0.00017,2]
[419317602,1775154647149,-555.00974,0.00017,2]
[419317603,1775154647159,-555.00974,0.00017,2]
[419317604,1775154647169,-770.161626,0.00017,2]
[419317605,1775154647181,-555.00974,0.00017,2]
[419317606,1775154647191,-770.161626,0.00017,2]
[419317607,1775154647200,-770.161626,0.00017,2]
[419317608,1775154647209,-770.161626,0.00017,2]
[419317609,1775154647219,-350.0,0.00017,2]
[419317610,1775154647228,-151.0,0.00017,2]
[419317611,1775154647238,-151.0,0.00017,2]
[419317612,1775154647248,-202.203853,0.00017,2]
[419317613,1775154647257,-151.0,0.00017,2]
[419317614,1775154647267,-151.0,0.00017,2]
[419317615,1775154647277,-467.622927,0.00017,2]
[419317616,1775154647286,-467.622927,0.00017,2]
[419317617,1775154647296,-467.622927,0.00017,2]
[419317618,1775154647306,-467.622927,0.00017,2]
[419317619,1775154647315,-151.0,0.00017,2]
[419317620,1775154647325,-294.980917,0.00017,2]
[419317621,1775154647336,-454.30393,0.00017,2]
[419317622,1775154647346,-294.980917,0.00017,2]
[419317623,1775154647355,-454.30393,0.00017,2]
[419317624,1775154647365,-294.980917,0.00017,2]
[419317625,1775154647376,-454.30393,0.00017,2]
[419317626,1775154647386,-294.980917,0.00017,2]
[419317627,1775154647395,-454.30393,0.00017,2]
[419317628,1775154647405,-839.64282887,0.00017017,2]
[419317629,1775154647414,-2500.0,0.00017017,2]
[419317630,1775154647424,-1798.88224457,0.00017017,2]
[419317631,1775154647433,-317.0,0.00017017,2]
[419317632,1775154647442,-150.0,0.0001703,2]
[419317633,1775154647452,-200.0,0.0001703,2]
[419317634,1775154647462,-304.23564359,0.00017032,2]
[419317635,1775154647471,-300.0,0.00017032,2]
[419317636,1775154647481,-300.0,0.00017032,2]
[419317637,1775154647491,-300.0,0.00017032,2]
[419317638,1775154647500,-300.0,0.00017032,2]
[419317639,1775154647510,-300.0,0.00017032,2]
[419317640,1775154647519,-2505.0,0.00017052,2]
[419317641,1775154647529,-2061.25077082,0.00017054,2]
[419317642,1775154647539,-2500.0,0.00017054,2]
[419317643,1775154647548,-4000.0,0.00017058,2]
[419317644,1775154647558,-1500.0,0.00017068,2]
[419317645,1775154647568,-1500.0,0.00017068,2]
[419317646,1775154647578,-1000.0,0.00017068,2]
[419317647,1775154647588,-1500.0,0.00017068,2]
[419317648,1775154647597,-166.67,0.00017071,2]
[419317649,1775154647607,-161.12,0.00017071,2]
[419317650,1775154647616,-500.0,0.00017099,2]
[419317651,1775154647626,-500.0,0.00017099,2]
[419317652,1775154647636,-500.0,0.00017099,2]
[419317653,1775154647646,-500.0,0.00017099,2]
[419317654,1775154647655,-500.0,0.00017099,2]
[419317655,1775154647665,-500.0,0.00017099,2]
[419317656,1775154647674,-500.0,0.00017099,2]
[419317657,1775154647683,-500.0,0.00017099,2]
[419317658,1775154647693,-500.0,0.00017099,2]
[419317659,1775154647702,-500.0,0.00017099,2]
[419317660,1775154647712,-500.0,0.00017099,2]